[Event "NJSK 2022 Meisjes C"]
[Site "Almelo, Netherlands"]
[Date "2022.05.01"]
[Round "1.1"]
[White "Gergin, Isafara"]
[Black "Roebers, Bregje"]
[Result "1/2-1/2"]
[TimeControl "90min/40moves + 30min + 30sec/move"]
[WhiteElo "1723"]
[BlackElo "1214"]

1. e4 {[%clk 01:30:57]} {[%emt 00:00:03]} e5 {[%clk 01:30:56]} {[%emt
00:00:04]} 2. Nf3 {[%clk 01:31:24]} {[%emt 00:00:03]} Nc6 {[%clk 01:31:18]}
{[%emt 00:00:07]} 3. Bc4 {[%clk 01:31:47]} {[%emt 00:00:07]} Nf6 {[%clk
01:31:35]} {[%emt 00:00:13]} 4. d3 {[%clk 01:32:07]} {[%emt 00:00:11]} Be7
{[%clk 01:31:40]} {[%emt 00:00:25]} 5. c3 {[%clk 01:32:22]} {[%emt 00:00:15]}
d6 {[%clk 01:30:58]} {[%emt 00:01:11]} 6. Bb3 {[%clk 01:31:57]} {[%emt
00:00:56]} Bg4 {[%clk 01:29:49]} {[%emt 00:01:39]} 7. h3 {[%clk 01:31:50]}
{[%emt 00:00:37]} Bh5 {[%clk 01:29:56]} {[%emt 00:00:24]} 8. g4 {[%clk
01:30:55]} {[%emt 00:01:24]} Bg6 {[%clk 01:30:18]} {[%emt 00:00:08]} 9. Nbd2
{[%clk 01:31:15]} {[%emt 00:00:10]} h5 {[%clk 01:27:50]} {[%emt 00:02:57]} 10.
g5 {[%clk 01:24:00]} {[%emt 00:07:46]} Nd7 {[%clk 01:27:44]} {[%emt 00:00:37]}
11. Nf1 {[%clk 01:20:58]} {[%emt 00:03:31]} Nc5 {[%clk 01:23:40]} {[%emt
00:04:34]} 12. Ng3 {[%clk 01:14:07]} {[%emt 00:07:22]} Nxb3 {[%clk 01:14:56]}
{[%emt 00:09:13]} 13. Qxb3 {[%clk 01:13:52]} {[%emt 00:00:44]} b6 {[%clk
01:12:19]} {[%emt 00:03:08]} 14. Be3 {[%clk 01:03:51]} {[%emt 00:10:31]} Na5
{[%clk 01:05:28]} {[%emt 00:07:22]} 15. Qc2 {[%clk 00:57:47]} {[%emt 00:06:33]}
Nb7 {[%clk 01:00:13]} {[%emt 00:05:45]} 16. O-O-O {[%clk 00:48:08]} {[%emt
00:10:09]} Qd7 {[%clk 00:55:25]} {[%emt 00:05:18]} 17. Nh4 {[%clk 00:38:55]}
{[%emt 00:09:43]} O-O-O {[%clk 00:48:17]} {[%emt 00:07:38]} 18. Nxg6 {[%clk
00:35:09]} {[%emt 00:04:16]} fxg6 {[%clk 00:48:39]} {[%emt 00:00:06]} 19. d4
{[%clk 00:31:57]} {[%emt 00:21:35]} Qe6 {[%clk 00:48:40]} {[%emt 00:00:29]} 20.
d5 {[%clk 00:30:02]} {[%emt 00:02:26]} Qd7 {[%clk 00:48:15]} {[%emt 00:00:55]}
21. Ne2 {[%clk 00:26:11]} {[%emt 00:04:21]} Rhf8 {[%clk 00:43:44]} {[%emt
00:05:01]} 22. Rdf1 {[%clk 00:21:31]} {[%emt 00:05:09]} Rf7 {[%clk 00:41:17]}
{[%emt 00:02:57]} 23. h4 {[%clk 00:19:59]} {[%emt 00:02:03]} Rdf8 {[%clk
00:40:37]} {[%emt 00:01:10]} 24. f4 {[%clk 00:15:46]} {[%emt 00:04:43]} Qg4
{[%clk 00:36:04]} {[%emt 00:05:03]} 25. Qd2 {[%clk 00:10:18]} {[%emt 00:05:58]}
Qd7 {[%clk 00:33:23]} {[%emt 00:03:11]} 26. Rf2 {[%clk 00:08:08]} {[%emt
00:02:39]} Qg4 {[%clk 00:32:27]} {[%emt 00:01:26]} 27. Rhf1 {[%clk 00:07:15]}
{[%emt 00:01:24]} Qxh4 {[%clk 00:29:58]} {[%emt 00:02:59]} 28. Rf3 {[%clk
00:06:10]} {[%emt 00:01:34]} Qg4 {[%clk 00:28:58]} {[%emt 00:01:30]} 29. Rg3
{[%clk 00:05:04]} {[%emt 00:01:37]} Qd7 {[%clk 00:29:01]} {[%emt 00:00:27]} 30.
Rf2 {[%clk 00:03:59]} {[%emt 00:01:34]} Qa4 {[%clk 00:27:31]} {[%emt 00:02:00]}
31. b4 {[%clk 00:02:15]} {[%emt 00:02:14]} Qb5 {[%clk 00:26:42]} {[%emt
00:01:19]} 32. Qc2 {[%clk 00:02:12]} {[%emt 00:00:33]} Qd7 {[%clk 00:25:39]}
{[%emt 00:01:33]} 33. Rgf3 {[%clk 00:01:41]} {[%emt 00:01:01]} Bxg5 {[%clk
00:23:36]} {[%emt 00:02:33]} 34. Rg2 {[%clk 00:01:17]} {[%emt 00:00:54]} Bh6
{[%clk 00:21:51]} {[%emt 00:02:15]} 35. Qd2 {[%clk 00:01:33]} {[%emt 00:00:15]}
Rf6 {[%clk 00:19:56]} {[%emt 00:02:24]} 36. Kb2 {[%clk 00:01:13]} {[%emt
00:00:51]} Qb5 {[%clk 00:18:08]} {[%emt 00:02:19]} 37. Rgf2 {[%clk 00:01:14]}
{[%emt 00:00:28]} Na5 {[%clk 00:17:29]} {[%emt 00:01:09]} 38. Ka1 {[%clk
00:01:07]} {[%emt 00:00:37]} Nb7 {[%clk 00:17:14]} {[%emt 00:00:45]} 39. f5
{[%clk 00:01:10]} {[%emt 00:00:27]} Bxe3 {[%clk 00:16:54]} {[%emt 00:00:49]} 40.
Qxe3 {[%clk 00:01:33]} {[%emt 00:00:07]} gxf5 {[%clk 00:16:47]} {[%emt
00:00:38]} 41. Rxf5 {[%clk 00:01:10]} {[%emt 00:00:52]} Rxf5 {[%clk 00:16:55]}
{[%emt 00:00:23]} 42. exf5 {[%clk 00:29:16]} {[%emt 00:02:24]} Qxd5 {[%clk
00:46:46]} {[%emt 00:00:39]} 43. Ng3 {[%clk 00:27:47]} {[%emt 00:01:59]} Qf7
{[%clk 00:45:34]} {[%emt 00:01:42]} 44. Qe4 {[%clk 00:25:42]} {[%emt 00:02:34]}
Kb8 {[%clk 00:44:28]} {[%emt 00:01:37]} 45. Qh4 {[%clk 00:24:08]} {[%emt
00:02:03]} Rh8 {[%clk 00:42:53]} {[%emt 00:02:05]} 46. Rh2 {[%clk 00:19:16]}
{[%emt 00:05:23]} Qf6 {[%clk 00:42:49]} {[%emt 00:00:34]} 47. Qh3 {[%clk
00:16:36]} {[%emt 00:03:10]} Qg5 {[%clk 00:41:24]} {[%emt 00:01:54]} 48. Rh1
{[%clk 00:15:21]} {[%emt 00:01:45]} h4 {[%clk 00:40:46]} {[%emt 00:01:09]} 49.
Ne4 {[%clk 00:11:45]} {[%emt 00:04:06]} Qf4 {[%clk 00:40:13]} {[%emt 00:01:02]}
50. Qg2 {[%clk 00:09:08]} {[%emt 00:03:08]} Qxf5 {[%clk 00:39:29]} {[%emt
00:01:13]} 51. Qxg7 {[%clk 00:09:24]} {[%emt 00:00:14]} Qh7 {[%clk 00:39:16]}
{[%emt 00:00:43]} 52. Qg4 {[%clk 00:08:44]} {[%emt 00:01:11]} h3 {[%clk
00:38:28]} {[%emt 00:01:18]} 53. Nf6 {[%clk 00:07:30]} {[%emt 00:01:44]} Qh4
{[%clk 00:37:46]} {[%emt 00:01:12]} 54. Nd7+ {[%clk 00:05:39]} {[%emt
00:02:20]} Ka8 {[%clk 00:37:26]} {[%emt 00:00:50]} 55. Qf3 {[%clk 00:05:20]}
{[%emt 00:00:49]} Qe7 {[%clk 00:35:58]} {[%emt 00:01:58]} 56. Qc6 {[%clk
00:05:25]} {[%emt 00:00:26]} Rd8 {[%clk 00:34:59]} {[%emt 00:01:27]} 57. Nxb6+
{[%clk 00:03:58]} {[%emt 00:01:58]} cxb6 {[%clk 00:34:57]} {[%emt 00:00:31]} 58.
Rxh3 {[%clk 00:04:00]} {[%emt 00:00:29]} Qd7 {[%clk 00:34:41]} {[%emt
00:00:46]} 59. Qh1 {[%clk 00:03:55]} {[%emt 00:00:35]} Rc8 {[%clk 00:34:14]}
{[%emt 00:00:57]} 60. Rh7 {[%clk 00:03:24]} {[%emt 00:01:02]} Qc6 {[%clk
00:34:32]} {[%emt 00:00:11]} 61. Qxc6 {[%clk 00:03:26]} {[%emt 00:00:29]} Rxc6
{[%clk 00:34:45]} {[%emt 00:00:16]} 62. Rh8+ {[%clk 00:03:49]} {[%emt
00:00:07]} Nd8 {[%clk 00:35:08]} {[%emt 00:00:08]} 63. Rxd8+ {[%clk 00:04:10]}
{[%emt 00:00:07]} Kb7 {[%clk 00:35:29]} {[%emt 00:00:10]} 64. Rd7+ {[%clk
00:03:32]} {[%emt 00:01:09]} Rc7 {[%clk 00:35:26]} {[%emt 00:00:33]} 65. Rxd6
{[%clk 00:03:19]} {[%emt 00:00:43]} Rxc3 {[%emt 00:00:08]} 66. Re6 Re3 67. Kb2
Re2+ 68. Kb1 e4 69. a4 e3 70. Kc1 Re1+ 71. Kc2 e2 72. Kd2 Rb1 {[%clk 00:35:45]}
73. Kxe2 {[%clk 00:03:12]} Rb3 {[%clk 00:36:54]} {[%emt 00:07:58]} 74. Kd2 Rxb4
{[%clk 00:36:57]} 75. Re7+ {[%clk 00:02:12]} {[%emt 00:00:21]} Ka6 {[%clk
00:37:25]} {[%emt 00:00:02]} 76. a5 {[%clk 00:02:10]} {[%emt 00:00:33]} bxa5
{[%clk 00:37:48]} {[%emt 00:00:06]} 77. Kc3 {[%clk 00:01:58]} {[%emt 00:00:42]}
Rb6 {[%clk 00:37:56]} {[%emt 00:00:23]} 78. Re4 {[%clk 00:01:53]} {[%emt
00:00:34]} Kb5 {[%clk 00:37:27]} {[%emt 00:00:59]} 79. Kb2 {[%clk 00:01:16]}
{[%emt 00:01:08]} Kc5+ {[%clk 00:35:18]} {[%emt 00:02:39]} 80. Ka3 {[%clk
00:01:06]} {[%emt 00:00:40]} Kd5 {[%clk 00:34:34]} {[%emt 00:01:14]} 81. Rh4
{[%clk 00:01:19]} {[%emt 00:00:16]} Rb1 {[%clk 00:33:46]} {[%emt 00:01:18]} 82.
Ka2 {[%clk 00:01:25]} {[%emt 00:00:25]} Rb4 {[%clk 00:34:02]} {[%emt 00:00:13]}
83. Rh5+ {[%clk 00:01:27]} {[%emt 00:00:29]} Kc4 {[%clk 00:33:53]} {[%emt
00:00:39]} 84. Rxa5 {[%clk 00:01:22]} {[%emt 00:00:35]} Rb7 {[%clk 00:34:08]}
{[%emt 00:00:14]} 85. Ra4+ {[%clk 00:01:24]} {[%emt 00:00:28]} Kc3 {[%clk
00:34:26]} {[%emt 00:00:13]} 86. Rh4 {[%clk 00:01:00]} {[%emt 00:00:54]} Rd7
{[%clk 00:34:19]} {[%emt 00:00:37]} 87. Rh3+ {[%clk 00:01:22]} {[%emt
00:00:07]} Rd3 {[%clk 00:34:39]} {[%emt 00:00:10]} 88. Rxd3+ {[%clk 00:01:48]}
{[%emt 00:00:05]} Kxd3 {[%clk 00:34:49]} {[%emt 00:00:19]} 89. Ka3 {[%clk
00:01:52]} {[%emt 00:00:27]} Kc4 {[%clk 00:35:04]} {[%emt 00:00:15]} 90. Ka4
{[%clk 00:02:13]} {[%emt 00:00:08]} Kc5 {[%clk 00:35:09]} {[%emt 00:00:25]} 91.
Ka5 {[%clk 00:02:34]} {[%emt 00:00:09]} Kc6 {[%clk 00:35:28]} {[%emt 00:00:11]}
92. Ka6 {[%clk 00:02:59]} {[%emt 00:00:06]} Kc7 {[%clk 00:35:45]} {[%emt
00:00:12]} 93. Kxa7 {[%clk 00:03:25]} {[%emt 00:00:04]} 1/2-1/2

[Event "NJSK 2022 Meisjes C"]
[Site "Almelo, Netherlands"]
[Date "2022.05.01"]
[Round "1.2"]
[White "Liu, Chia-Yun"]
[Black "Feng, Elysia"]
[Result "1/2-1/2"]
[TimeControl "90min/40moves + 30min + 30sec/move"]
[WhiteElo "1148"]
[BlackElo "1641"]

1. e4 {[%clk 01:30:57]} {[%emt 00:00:03]} e5 {[%clk 01:30:56]} {[%emt
00:00:05]} 2. Nf3 {[%clk 01:31:21]} {[%emt 00:00:05]} Nc6 {[%clk 01:31:21]}
{[%emt 00:00:05]} 3. Bc4 {[%clk 01:31:41]} {[%emt 00:00:10]} Bc5 {[%clk
01:31:47]} {[%emt 00:00:04]} 4. c3 {[%clk 01:32:03]} {[%emt 00:00:09]} Nf6
{[%clk 01:32:12]} {[%emt 00:00:04]} 5. d3 {[%clk 01:32:22]} {[%emt 00:00:10]}
O-O {[%clk 01:31:56]} {[%emt 00:00:46]} 6. a4 {[%clk 01:32:19]} {[%emt
00:00:33]} a5 {[%clk 01:31:41]} {[%emt 00:00:46]} 7. O-O {[%clk 01:32:28]}
{[%emt 00:00:20]} d6 {[%clk 01:30:37]} {[%emt 00:01:35]} 8. Nbd2 {[%clk
01:32:30]} {[%emt 00:00:28]} Bg4 {[%clk 01:29:58]} {[%emt 00:01:09]} 9. h3
{[%clk 01:32:15]} {[%emt 00:00:45]} Bh5 {[%clk 01:30:19]} {[%emt 00:00:09]} 10.
Re1 {[%clk 01:31:39]} {[%emt 00:01:06]} Qd7 {[%clk 01:29:04]} {[%emt 00:01:45]}
11. Nf1 {[%clk 01:31:09]} {[%emt 00:01:00]} Ne7 {[%clk 01:27:03]} {[%emt
00:02:31]} 12. Ng3 {[%clk 01:31:16]} {[%emt 00:00:23]} Bg6 {[%clk 01:27:25]}
{[%emt 00:00:08]} 13. Nh4 {[%clk 01:29:18]} {[%emt 00:02:28]} Kh8 {[%clk
01:19:44]} {[%emt 00:08:12]} 14. Bg5 {[%clk 01:27:19]} {[%emt 00:02:28]} Nfg8
{[%clk 01:16:54]} {[%emt 00:03:19]} 15. Rf1 {[%clk 01:19:51]} {[%emt 00:07:59]}
Qe8 {[%clk 01:02:46]} {[%emt 00:14:38]} 16. Kh1 {[%clk 01:14:36]} {[%emt
00:05:44]} f6 {[%clk 00:55:38]} {[%emt 00:07:38]} 17. Be3 {[%clk 01:13:33]}
{[%emt 00:01:33]} Bxe3 {[%clk 00:50:22]} {[%emt 00:05:46]} 18. fxe3 {[%clk
01:13:45]} {[%emt 00:00:18]} Bf7 {[%clk 00:46:59]} {[%emt 00:03:54]} 19. Bxf7
{[%clk 01:12:19]} {[%emt 00:01:55]} Qxf7 {[%clk 00:47:20]} {[%emt 00:00:09]} 20.
d4 {[%clk 01:11:43]} {[%emt 00:01:06]} Ng6 {[%clk 00:43:59]} {[%emt 00:03:51]}
21. Nhf5 {[%clk 01:08:56]} {[%emt 00:03:18]} N8e7 {[%clk 00:40:03]} {[%emt
00:04:26]} 22. Qe2 {[%clk 00:55:54]} {[%emt 00:13:31]} c6 {[%clk 00:30:06]}
{[%emt 00:10:27]} 23. Nxd6 {[%clk 00:54:30]} {[%emt 00:22:50]} Qb3 {[%clk
00:29:05]} {[%emt 00:01:32]} 24. Ra3 {[%clk 00:51:41]} {[%emt 00:03:19]} Qb6
{[%clk 00:28:20]} {[%emt 00:01:14]} 25. Ngf5 {[%clk 00:49:25]} {[%emt
00:02:46]} Qc7 {[%clk 00:22:45]} {[%emt 00:06:06]} 1/2-1/2

[Event "NJSK 2022 Meisjes C"]
[Site "Almelo, Netherlands"]
[Date "2022.05.01"]
[Round "1.3"]
[White "Maris, Lauri"]
[Black "Kulikova, Polina"]
[Result "1-0"]
[TimeControl "90min/40moves + 30min + 30sec/move"]
[WhiteElo "1619"]
[BlackElo "1117"]

1. e4 {[%clk 01:30:58]} {[%emt 00:00:02]} e5 {[%clk 01:30:40]} {[%emt
00:00:21]} 2. Nf3 {[%clk 01:31:19]} {[%emt 00:00:09]} Nc6 {[%clk 01:30:52]}
{[%emt 00:00:18]} 3. Bb5 {[%clk 01:31:36]} {[%emt 00:00:13]} a6 {[%clk
01:30:58]} {[%emt 00:00:24]} 4. Bxc6 {[%clk 01:31:56]} {[%emt 00:00:10]} dxc6
{[%clk 01:31:24]} {[%emt 00:00:04]} 5. O-O {[%clk 01:30:51]} {[%emt 00:01:35]}
Nf6 {[%clk 01:31:21]} {[%emt 00:00:32]} 6. d3 {[%clk 01:30:57]} {[%emt
00:00:25]} Bd6 {[%clk 01:28:16]} {[%emt 00:03:34]} 7. Bg5 {[%clk 01:29:41]}
{[%emt 00:01:45]} Bg4 {[%clk 01:28:24]} {[%emt 00:00:23]} 8. Nbd2 {[%clk
01:29:36]} {[%emt 00:00:35]} h6 {[%clk 01:27:53]} {[%emt 00:01:01]} 9. Bh4
{[%clk 01:29:42]} {[%emt 00:00:25]} g5 {[%clk 01:24:24]} {[%emt 00:03:57]} 10.
Bg3 {[%clk 01:29:39]} {[%emt 00:00:35]} Nh5 {[%clk 01:24:13]} {[%emt 00:00:41]}
11. h3 {[%clk 01:28:49]} {[%emt 00:01:20]} Nxg3 {[%clk 01:23:16]} {[%emt
00:01:26]} 12. fxg3 {[%clk 01:28:58]} {[%emt 00:00:22]} Be6 {[%clk 01:21:12]}
{[%emt 00:02:34]} 13. Nh2 {[%clk 01:26:17]} {[%emt 00:03:11]} Qd7 {[%clk
01:16:33]} {[%emt 00:05:07]} 14. g4 {[%clk 01:21:06]} {[%emt 00:05:42]} O-O-O
{[%clk 01:13:28]} {[%emt 00:03:35]} 15. Qf3 {[%clk 01:19:24]} {[%emt 00:02:11]}
Rdf8 {[%clk 01:11:57]} {[%emt 00:02:00]} 16. Kh1 {[%clk 01:18:31]} {[%emt
00:01:26]} f6 {[%clk 01:08:39]} {[%emt 00:03:48]} 17. Qe3 {[%clk 01:17:31]}
{[%emt 00:01:31]} Kb8 {[%clk 01:06:00]} {[%emt 00:03:08]} 18. Nb3 {[%clk
01:17:15]} {[%emt 00:00:47]} b6 {[%clk 01:03:28]} {[%emt 00:03:02]} 19. Qe2
{[%clk 01:14:50]} {[%emt 00:02:54]} Kb7 {[%clk 01:00:46]} {[%emt 00:03:12]} 20.
c4 {[%clk 01:13:09]} {[%emt 00:02:11]} Be7 {[%clk 00:58:29]} {[%emt 00:02:47]}
21. a4 {[%clk 01:11:44]} {[%emt 00:01:56]} Rd8 {[%clk 00:56:27]} {[%emt
00:02:30]} 22. Rfd1 {[%clk 01:11:30]} {[%emt 00:00:46]} a5 {[%clk 00:56:39]}
{[%emt 00:00:18]} 23. Nc1 {[%clk 01:06:18]} {[%emt 00:05:42]} Bf7 {[%clk
00:54:37]} {[%emt 00:02:31]} 24. Rf1 {[%clk 01:04:40]} {[%emt 00:02:04]} h5
{[%clk 00:54:23]} {[%emt 00:00:47]} 25. b3 {[%clk 01:02:50]} {[%emt 00:02:21]}
hxg4 {[%clk 00:52:43]} {[%emt 00:02:10]} 26. Qxg4 {[%clk 01:00:51]} {[%emt
00:02:29]} Bh5 {[%clk 00:51:19]} {[%emt 00:01:54]} 27. Qxd7 {[%clk 01:00:59]}
{[%emt 00:00:23]} Rxd7 {[%clk 00:51:30]} {[%emt 00:00:19]} 28. Ra2 {[%clk
01:00:40]} {[%emt 00:00:49]} Rf8 {[%clk 00:48:46]} {[%emt 00:03:14]} 29. g4
{[%clk 00:59:41]} {[%emt 00:01:29]} Bg6 {[%clk 00:48:48]} {[%emt 00:00:28]} 30.
Kg2 {[%clk 00:59:15]} {[%emt 00:00:53]} Bc5 {[%clk 00:48:11]} {[%emt 00:01:07]}
31. Nf3 {[%clk 00:57:43]} {[%emt 00:02:04]} Ka6 {[%clk 00:46:05]} {[%emt
00:02:35]} 32. Ne1 {[%clk 00:50:51]} {[%emt 00:07:21]} Be3 {[%clk 00:45:59]}
{[%emt 00:00:38]} 33. Ne2 {[%clk 00:49:57]} {[%emt 00:20:47]} Bc5 {[%clk
00:43:36]} {[%emt 00:02:51]} 34. Rf3 {[%clk 00:46:51]} {[%emt 00:03:38]} Be7
{[%clk 00:38:24]} {[%emt 00:05:41]} 35. Nc1 {[%clk 00:39:23]} {[%emt 00:07:58]}
Rb8 {[%clk 00:38:16]} {[%emt 00:00:37]} 36. Nc2 {[%clk 00:38:14]} {[%emt
00:01:41]} Bf7 {[%clk 00:36:38]} {[%emt 00:02:06]} 37. Na3 {[%clk 00:35:19]}
{[%emt 00:03:27]} Bg8 {[%clk 00:34:30]} {[%emt 00:02:35]} 38. Rff2 {[%clk
00:32:47]} {[%emt 00:03:05]} Bxa3 {[%clk 00:31:51]} {[%emt 00:03:09]} 39. Rxa3
{[%clk 00:33:11]} {[%emt 00:00:07]} Rf8 {[%clk 00:32:09]} {[%emt 00:00:12]} 40.
Raa2 {[%clk 00:31:58]} {[%emt 00:01:42]} b5 {[%clk 00:30:03]} {[%emt 00:02:36]}
41. axb5+ {[%clk 00:31:47]} {[%emt 00:00:41]} cxb5 {[%clk 00:30:09]} {[%emt
00:00:24]} 42. Ra3 {[%clk 00:30:51]} {[%emt 00:01:26]} bxc4 {[%clk 00:29:10]}
{[%emt 00:01:30]} 43. bxc4 {[%clk 00:31:04]} {[%emt 00:00:16]} Kb6 {[%clk
00:26:33]} {[%emt 00:03:07]} 44. Rb2+ {[%clk 00:31:08]} {[%emt 00:00:26]} Kc6
{[%clk 00:23:16]} {[%emt 00:03:47]} 45. Rxa5 {[%clk 00:30:47]} {[%emt
00:00:51]} Kd6 {[%clk 00:22:50]} {[%emt 00:00:56]} 46. Ra7 {[%clk 00:26:35]}
{[%emt 00:04:41]} Rfd8 {[%clk 00:21:06]} {[%emt 00:02:14]} 47. Ra6+ {[%clk
00:25:02]} {[%emt 00:02:04]} Ke7 {[%clk 00:19:44]} {[%emt 00:01:51]} 48. c5
{[%clk 00:22:34]} {[%emt 00:02:59]} Rc8 {[%clk 00:18:31]} {[%emt 00:01:40]} 49.
Rb7 {[%clk 00:20:17]} {[%emt 00:02:49]} Bf7 {[%clk 00:16:49]} {[%emt 00:02:13]}
50. Raa7 {[%clk 00:19:36]} {[%emt 00:01:11]} Kd8 {[%clk 00:16:38]} {[%emt
00:00:40]} 51. Ra6 {[%clk 00:19:01]} {[%emt 00:01:05]} Ke7 {[%clk 00:16:34]}
{[%emt 00:00:34]} 52. Rc6 {[%clk 00:18:37]} {[%emt 00:00:54]} Bg8 {[%clk
00:15:22]} {[%emt 00:01:43]} 53. Kf2 {[%clk 00:17:50]} {[%emt 00:01:16]} Bf7
{[%clk 00:15:03]} {[%emt 00:00:49]} 54. Ra7 {[%clk 00:17:05]} {[%emt 00:01:15]}
Bg8 {[%clk 00:15:15]} {[%emt 00:00:19]} 55. Kf3 {[%clk 00:17:12]} {[%emt
00:00:22]} Bf7 {[%clk 00:15:12]} {[%emt 00:00:34]} 56. Raa6 {[%clk 00:17:23]}
{[%emt 00:00:19]} Rb8 {[%clk 00:14:44]} {[%emt 00:00:58]} 57. Ke3 {[%clk
00:11:00]} {[%emt 00:06:53]} Rb1 {[%clk 00:14:49]} {[%emt 00:00:24]} 58. Kd2
{[%clk 00:10:46]} {[%emt 00:00:44]} Rb2+ {[%clk 00:15:01]} {[%emt 00:00:19]} 59.
Kc3 {[%clk 00:10:35]} {[%emt 00:00:40]} Rh2 {[%clk 00:15:27]} {[%emt 00:00:05]}
60. Rxf6 {[%clk 00:10:47]} {[%emt 00:00:18]} Rxh3 {[%clk 00:15:52]} {[%emt
00:00:04]} 61. Rf5 {[%clk 00:10:38]} {[%emt 00:00:39]} Rh1 {[%clk 00:15:52]}
{[%emt 00:00:31]} 62. Ra1 {[%clk 00:10:44]} {[%emt 00:00:21]} Ke6 {[%clk
00:15:48]} {[%emt 00:00:37]} 63. Rxg5 {[%clk 00:10:12]} {[%emt 00:01:02]} Kf6
{[%clk 00:16:15]} {[%emt 00:00:04]} 64. Rf5+ {[%clk 00:10:22]} {[%emt
00:00:19]} Kg6 {[%clk 00:16:27]} {[%emt 00:00:18]} 65. Rxe5 {[%clk 00:10:42]}
{[%emt 00:00:10]} Rg1 {[%clk 00:16:52]} {[%emt 00:00:05]} 66. Ra6+ {[%clk
00:10:13]} {[%emt 00:00:58]} Kh7 {[%clk 00:17:14]} {[%emt 00:00:08]} 67. Ne2
{[%clk 00:10:02]} {[%emt 00:00:39]} Rxg4 {[%clk 00:17:42]} {[%emt 00:00:05]} 68.
Nd4 {[%clk 00:10:04]} {[%emt 00:00:26]} Rg1 {[%clk 00:17:35]} {[%emt 00:00:38]}
69. Ra7 {[%clk 00:09:46]} {[%emt 00:00:49]} Rc1+ {[%clk 00:17:08]} {[%emt
00:00:56]} 70. Nc2 {[%clk 00:10:02]} {[%emt 00:00:14]} Rd1 {[%clk 00:17:31]}
{[%emt 00:00:08]} 71. d4 {[%clk 00:10:16]} {[%emt 00:00:16]} Rd3+ {[%clk
00:17:42]} {[%emt 00:00:19]} 72. Kxd3 {[%clk 00:10:02]} {[%emt 00:00:44]} Bb3
{[%clk 00:17:44]} {[%emt 00:00:28]} 73. d5 {[%clk 00:09:55]} {[%emt 00:00:36]}
Rg7 {[%clk 00:17:04]} {[%emt 00:01:11]} 74. d6 {[%clk 00:09:36]} {[%emt
00:00:48]} cxd6 75. Rxg7+ Kxg7 {[%clk 00:17:30]} {[%emt 00:00:19]} 76. cxd6
{[%clk 00:10:23]} {[%emt 00:00:07]} Kf6 {[%clk 00:17:54]} {[%emt 00:00:06]} 77.
Kd4 {[%clk 00:10:04]} {[%emt 00:00:49]} Bxc2 {[%clk 00:18:17]} {[%emt
00:00:06]} 78. d7 {[%clk 00:10:27]} {[%emt 00:00:08]} Bxe4 {[%clk 00:18:08]}
{[%emt 00:00:39]} 79. Rxe4 {[%clk 00:10:43]} {[%emt 00:00:14]} Kg6 {[%clk
00:18:15]} {[%emt 00:00:23]} 80. d8=Q {[%clk 00:10:58]} {[%emt 00:00:15]} Kf5
{[%clk 00:18:25]} {[%emt 00:00:19]} 1-0